fUST/lending_fUST_20250814
["ID","MTS","AMOUNT","RATE_DAILY","PERIOD"]
[379165943,1755172241459,-151.0,0.00016711,2]
[379165944,1755172241468,-151.0,0.00016711,2]
[379165945,1755172241478,-125.26069245,0.00016711,2]
[379165949,1755172241821,-0.00212854,0.00016711,2]
[379165973,1755172243825,-460.0,0.00016438,2]
[379165974,1755172243836,-131.14321978,0.00016438,2]
[379165975,1755172243861,-328.85678022,0.00016438,2]
[379165976,1755172243871,-25.73717901,0.00016711,2]
[379165977,1755172243880,-151.0,0.00016711,2]
[379165978,1755172243889,-87.13604077,0.00016712,2]
[379166005,1755172246744,-460.0,0.00016438,2]
[379166006,1755172246753,-242.06664328,0.00016438,2]
[379166008,1755172250969,-414.39335672,0.00016438,2]
[379166009,1755172250978,-246.23822356,0.00016711,2]
[379166010,1755172250988,-151.0,0.00016711,2]
[379166011,1755172250998,-151.0,0.00016711,2]
[379166012,1755172251007,-460.0,0.00016711,2]
[379166013,1755172251017,-63.86395923,0.00016712,2]
[379166014,1755172251028,-151.0,0.00016712,2]
[379166015,1755172251037,-151.0,0.00016712,2]
[379166016,1755172251047,-151.0,0.00016712,2]
[379166017,1755172251057,-151.0,0.00016712,2]
[379166018,1755172251067,-151.0,0.00016712,2]
[379166019,1755172251077,-460.0,0.00016712,2]
[379166020,1755172251087,-460.0,0.00016712,2]
[379166021,1755172251096,-346.24405978,0.00016712,2]
[379166022,1755172260223,-339.56336391,0.00016438,2]
[379166023,1755172262865,-120.43663609,0.00016438,2]
[379166024,1755172262887,-124.91267269,0.00016438,2]
[379166025,1755172264921,-335.08732731,0.00016438,2]
[379166026,1755172264945,-260.3809857,0.00016438,2]
[379166027,1755172267160,-199.6190143,0.00016438,2]
[379166028,1755172267183,-65.56084147,0.00016438,2]
[379166029,1755172269230,-182.32727903,0.00016438,2]
[379166030,1755172271308,-183.59764733,0.00016438,2]
[379166031,1755172274107,-28.51423217,0.00016438,2]
[379166032,1755172274129,-397.38132818,0.00016438,2]
[379166033,1755172276062,-62.61867182,0.00016438,2]
[379166034,1755172276084,-331.45640182,0.00016438,2]
[379166035,1755172278565,-192.68,0.00016438,2]
[379166036,1755172281200,-257.25919901,0.00016438,2]
[379166037,1755172357872,118.43473088,0.00015567,2]
[379166038,1755172357894,94.16343272,0.00015567,2]
[379166043,1755172464574,-168.0,0.00016329,2]
[379166044,1755172464597,-168.0,0.0001637,2]
[379166045,1755172464620,-95.29255903,0.00016437,2]
[379166046,1755172466611,-204.70744097,0.00016437,2]
[379166047,1755172466633,-168.16524064,0.00016438,2]
[379166048,1755172472562,-40.28915853,0.00016438,2]
[379166049,1755172472584,-244.30407218,0.00016438,2]
[379166050,1755172474181,-212.94796422,0.00016438,2]
[379166051,1755172475811,-126.8679636,0.00016438,2]
[379166052,1755172475834,-28.66807634,0.00016438,2]
[379166053,1755172477444,-300.0,0.00016438,2]
[379166054,1755172486073,-131.33192366,0.00016438,2]
[379166055,1755172486096,-387.1542732,0.00016438,2]
[379166056,1755172488650,-292.69115805,0.00016438,2]
[379166057,1755172490070,-241.34877261,0.00016438,2]
[379166058,1755172492216,-442.69755408,0.00016438,2]
[379166059,1755172493765,-122.79824206,0.00016438,2]
[379166060,1755172493788,-329.44744797,0.00016438,2]
[379166061,1755172495412,-184.18583241,0.00016438,2]
[379166062,1755172496749,-149.03671962,0.00016438,2]
[379166063,1755172496770,-122.16320538,0.00016438,2]
[379166064,1755172499489,-223.73164722,0.00016438,2]
[379166065,1755172499807,2131.65520404,0.00016303,2]
[379166066,1755172500912,-117.81781181,0.00016438,2]
[379166067,1755172500936,-59.29218819,0.00016438,2]
[379166068,1755172502584,-279.66814272,0.00016438,2]
[379166069,1755172506247,7774.18136324,0.00015509,2]
[379166070,1755172506272,2225.81863676,0.00015509,2]
[379166071,1755172506363,-193.82613533,0.00016437,2]
[379166072,1755172509202,-106.17386467,0.00016437,2]
[379166073,1755172509231,-143.67940251,0.00016438,2]
[379166074,1755172511210,-374.80673872,0.00016438,2]
[379166075,1755172514550,1747.143546,0.00015519,2]
[379166076,1755172515013,-423.16353644,0.00016438,2]
[379166077,1755172515302,1171.65747023,0.00016303,2]
[379166078,1755172519083,-49.88999142,0.00016438,2]
[379166079,1755172519109,-207.86366708,0.00016438,2]
[379166080,1755172521608,-382.04633292,0.00016438,2]
[379166081,1755172521633,-3.65884691,0.00016438,2]
[379166082,1755172523544,-232.69793018,0.00016438,2]
[379166083,1755172526366,-223.64322291,0.00016438,2]
[379166084,1755172526388,-43.18748593,0.00016438,2]
[379166085,1755172528437,-263.97913976,0.00016438,2]
[379166086,1755172532055,-327.36808057,0.00016438,2]
[379166087,1755172534633,-176.26962446,0.00016438,2]
[379166088,1755172536351,-240.19874226,0.00016438,2]
[379166089,1755172538949,-267.81692702,0.00016438,2]
[379166090,1755172538973,-127.58206883,0.00016438,2]
[379166091,1755172541163,-200.6999928,0.00016438,2]
[379166092,1755172542712,-131.71793837,0.00016438,2]
[379166093,1755172542733,-57.488261,0.00016438,2]
[379166094,1755172544737,-271.7002821,0.00016438,2]
[379166095,1755172575796,-234.28565764,0.00016437,2]
[379166096,1755172577850,-65.71434236,0.00016437,2]
[379166097,1755172577872,-120.2710528,0.00016438,2]
[379166098,1755172580406,-160.90648147,0.00016338,2]
[379166099,1755172580427,-10.5404041,0.00016438,2]
[379166100,1755172580449,-72.04438189,0.00016438,2]
[379166101,1755172583049,-152.0332552,0.00016438,2]
[379166102,1755172585123,-246.66470153,0.00016438,2]
[379166103,1755172587878,-262.13766138,0.00016438,2]
[379166104,1755172587899,-119.91070731,0.00016438,2]
[379166105,1755172597221,168.0,0.00016187,2]
[379166106,1755172610606,-312.73382983,0.00016438,2]
[379166107,1755172630673,984.399055,0.00015491,2]
[379166108,1755172647717,166.26954,0.00015491,2]
[379166109,1755172740673,-1440.94297518,0.00016423,2]
[379166110,1755172740695,-300.0,0.00016437,2]
[379166111,1755172740715,-27.35546286,0.00016438,2]
[379166112,1755172740735,-464.31323175,0.00016438,2]
[379166113,1755172740755,-460.0,0.00016438,2]
[379166114,1755172740778,-460.0,0.00016438,2]
[379166115,1755172740798,-460.0,0.00016438,2]
[379166116,1755172740818,-460.0,0.00016438,2]
[379166117,1755172740838,-460.0,0.00016438,2]
[379166118,1755172740859,-460.0,0.00016438,2]
[379166119,1755172740880,-460.0,0.00016438,2]
[379166120,1755172740901,-1077.87,0.00016438,2]
[379166121,1755172740921,-460.0,0.00016438,2]
[379166123,1755172740943,-460.0,0.00016438,2]
[379166124,1755172740963,-460.0,0.00016438,2]
[379166125,1755172740985,-460.0,0.00016438,2]
[379166126,1755172741005,-460.0,0.00016438,2]
[379166127,1755172741025,-322.55528456,0.00016438,2]
[379166128,1755172741046,-463.95288536,0.00016438,2]
[379166129,1755172741067,-460.0,0.00016438,2]
[379166130,1755172741088,-460.0,0.00016438,2]
[379166131,1755172741109,-461.95410795,0.00016438,2]
[379166132,1755172741130,-460.0,0.00016438,2]
[379166133,1755172741152,-463.30211484,0.00016438,2]
[379166134,1755172741172,-460.0,0.00016438,2]
[379166135,1755172741192,-460.0,0.00016438,2]
[379166136,1755172741212,-460.0,0.00016438,2]
[379166137,1755172741233,-460.0,0.00016438,2]
[379166138,1755172741253,-460.0,0.00016438,2]
[379166139,1755172741276,-201.97295885,0.00016438,2]
[379166140,1755172741297,-460.0,0.00016438,2]
[379166141,1755172741316,-460.0,0.00016438,2]
[379166142,1755172741336,-460.0,0.00016438,2]
[379166143,1755172741360,-667.88,0.00016438,2]
[379166144,1755172741384,-221.76112064,0.00016438,2]
[379166145,1755172741404,-460.0,0.00016438,2]
[379166146,1755172741424,-460.0,0.00016438,2]
[379166147,1755172741445,-729.05,0.00016438,2]
[379166148,1755172741466,-460.0,0.00016438,2]
[379166149,1755172741485,-463.54757011,0.00016438,2]
[379166150,1755172741506,-460.0,0.00016438,2]
[379166151,1755172741526,-460.0,0.00016438,2]
[379166152,1755172741546,-460.0,0.00016438,2]
[379166153,1755172741565,-385.14130556,0.00016438,2]
[379166154,1755172741587,-460.0,0.00016438,2]
[379166155,1755172741610,-460.0,0.00016438,2]
[379166156,1755172741631,-391.89860504,0.00016438,2]
[379166157,1755172741655,-460.0,0.00016438,2]
[379166158,1755172741677,-460.0,0.00016438,2]
[379166159,1755172741697,-468.98016125,0.00016438,2]
[379166160,1755172741718,-527.75,0.00016438,2]
[379166161,1755172741738,-959.8,0.00016438,2]
[379166162,1755172741758,-208.73289569,0.00016438,2]
[379166163,1755172741778,-460.0,0.00016438,2]
[379166164,1755172741800,-422.23932036,0.00016438,2]
[379166165,1755172755149,3536.71175201,0.00016303,2]
[379166166,1755172755175,1463.28824799,0.00016303,2]
[379166167,1755172771617,5000.0,0.00016303,2]
[379166168,1755172788205,3536.71175201,0.00016303,2]
[379166169,1755172788230,1463.28824799,0.00016303,2]
[379166170,1755172804362,5000.0,0.00016303,2]
[379166171,1755172821230,3536.71175201,0.00016303,2]
[379166172,1755172821253,1369.17787967,0.00016303,2]
[379166173,1755172829888,168.87316342,0.00016159,2]
[379166174,1755172894226,165.24,0.00016238,2]
[379166176,1755173046247,8296.70895691,0.00015612,2]
[379166177,1755173046269,10000.0,0.00015612,2]
[379166178,1755173046290,2824.94519319,0.00015612,2]
[379166186,1755173321313,933.302051,0.00013699,2]
[379166230,1755173431838,-169.19780497,0.00016336,2]
[379166232,1755173431848,-171.92939542,0.00016411,2]
[379166234,1755173431859,-980.82498474,0.00016411,2]
[379166236,1755173431868,-313.0,0.00016436,2]
[379166238,1755173431878,-265.17985577,0.00016437,2]
[379166240,1755173431887,-142.2475731,0.00016437,2]
[379166377,1755173437773,-157.7524269,0.00016437,2]
[379166378,1755173437783,-1200.0,0.00016437,2]
[379166379,1755173437792,-460.0,0.00016438,2]
[379166380,1755173437802,-460.0,0.00016438,2]
[379166381,1755173437813,-460.0,0.00016438,2]
[379166382,1755173437822,-460.0,0.00016438,2]
[379166383,1755173437831,-787.42,0.00016438,2]
[379166384,1755173437841,-460.0,0.00016438,2]
[379166385,1755173437850,-460.0,0.00016438,2]
[379166386,1755173437859,-460.0,0.00016438,2]
[379166387,1755173437868,-460.0,0.00016438,2]
[379166388,1755173437877,-460.0,0.00016438,2]
[379166389,1755173437887,-460.0,0.00016438,2]
[379166390,1755173437897,-460.0,0.00016438,2]
[379166391,1755173437906,-460.0,0.00016438,2]
[379166392,1755173437916,-460.0,0.00016438,2]
[379166393,1755173437925,-461.23930573,0.00016438,2]
[379166394,1755173437935,-460.0,0.00016438,2]
[379166395,1755173437944,-460.0,0.00016438,2]
[379166396,1755173437953,-460.0,0.00016438,2]
[379166398,1755173437962,-757.61,0.00016438,2]
[379166399,1755173437971,-500.0,0.00016438,2]
[379166401,1755173437981,-460.0,0.00016438,2]
[379166404,1755173437993,-460.0,0.00016438,2]
[379166406,1755173438002,-460.0,0.00016438,2]
[379166408,1755173438011,-460.0,0.00016438,2]
[379166410,1755173438020,-460.0,0.00016438,2]
[379166411,1755173438030,-460.0,0.00016438,2]
[379166413,1755173438040,-460.0,0.00016438,2]
[379166416,1755173438049,-460.55,0.00016438,2]
[379166418,1755173438058,-802.1,0.00016438,2]
[379166419,1755173438067,-460.0,0.00016438,2]
[379166422,1755173438077,-460.0,0.00016438,2]
[379166424,1755173438086,-460.0,0.00016438,2]
[379166446,1755173438288,-897.55,0.00016438,2]
[379166448,1755173438298,-460.0,0.00016438,2]
[379166451,1755173438307,-460.0,0.00016438,2]
[379166453,1755173438317,-460.0,0.00016438,2]
[379166455,1755173438326,-460.0,0.00016438,2]
[379166456,1755173438335,-460.0,0.00016438,2]
[379166458,1755173438345,-337.54119493,0.00016438,2]
[379166460,1755173438354,-460.0,0.00016438,2]
[379166461,1755173438364,-460.0,0.00016438,2]
[379166462,1755173438373,-460.0,0.00016438,2]
[379166463,1755173438383,-460.0,0.00016438,2]
[379166464,1755173438392,-460.0,0.00016438,2]
[379166465,1755173438402,-237.34826827,0.00016438,2]
[379166466,1755173438411,-460.0,0.00016438,2]
[379166467,1755173438421,-460.0,0.00016438,2]
[379166468,1755173438431,-460.0,0.00016438,2]
[379166469,1755173438440,-460.0,0.00016438,2]
[379166470,1755173438449,-468.47,0.00016438,2]
[379166471,1755173438458,-460.0,0.00016438,2]
[379166472,1755173438468,-460.0,0.00016438,2]
[379166473,1755173438478,-1214.82,0.00016438,2]
[379166474,1755173438487,-460.0,0.00016438,2]
[379166475,1755173438498,-460.0,0.00016438,2]
[379166476,1755173438510,-1695.65,0.00016438,2]
[379166477,1755173438519,-1223.69,0.00016438,2]
[379166478,1755173438529,-593.37,0.00016438,2]
[379166479,1755173438539,-1405.33,0.00016438,2]
[379166480,1755173438549,-460.0,0.00016438,2]
[379166481,1755173438559,-618.79,0.00016438,2]
[379166482,1755173438569,-460.0,0.00016438,2]
[379166483,1755173438580,-460.0,0.00016438,2]
[379166484,1755173438590,-568.26,0.00016438,2]
[379166485,1755173438599,-460.0,0.00016438,2]
[379166486,1755173438609,-460.0,0.00016438,2]
[379166487,1755173438619,-460.0,0.00016438,2]
[379166488,1755173438629,-460.0,0.00016438,2]
[379166489,1755173438638,-460.0,0.00016438,2]
[379166490,1755173438648,-460.0,0.00016438,2]
[379166491,1755173438657,-555.39,0.00016438,2]
[379166492,1755173438667,-458.57108174,0.00016438,2]
[379166493,1755173438676,-774.42,0.00016438,2]
[379166494,1755173438685,-2535.14,0.00016438,2]
[379166495,1755173438695,-460.0,0.00016438,2]
[379166496,1755173438704,-485.0,0.00016438,2]
[379166497,1755173438714,-1374.93,0.00016438,2]
[379166498,1755173438724,-5332.7,0.00016438,2]
[379166499,1755173438733,-460.0,0.00016438,2]
[379166500,1755173438743,-906.21,0.00016438,2]
[379166501,1755173438752,-460.0,0.00016438,2]
[379166502,1755173438761,-460.0,0.00016438,2]
[379166503,1755173438770,-598.12,0.00016438,2]
[379166504,1755173438780,-966.29,0.00016438,2]
[379166505,1755173438789,-912.08,0.00016438,2]
[379166506,1755173438799,-1753.28,0.00016438,2]
[379166507,1755173438808,-211.33442873,0.00016438,2]
[379166508,1755173438818,-531.73,0.00016438,2]
[379166509,1755173438827,-1165.7,0.00016438,2]
[379166510,1755173438836,-584.07,0.00016438,2]
[379166511,1755173438846,-542.11,0.00016438,2]
[379166512,1755173438855,-460.0,0.00016438,2]
[379166513,1755173438865,-158.47119424,0.00016438,2]
[379166514,1755173438874,-460.0,0.00016438,2]
[379166515,1755173438884,-460.0,0.00016438,2]
[379166516,1755173438893,-299.97,0.00016438,2]
[379166517,1755173438902,-508.42,0.00016438,2]
[379166518,1755173438911,-873.96,0.00016438,2]
[379166519,1755173438921,-2259.45,0.00016438,2]
[379166520,1755173438930,-460.0,0.00016438,2]
[379166521,1755173438940,-460.0,0.00016438,2]
[379166522,1755173438949,-965.29,0.00016438,2]
[379166523,1755173438959,-802.39,0.00016438,2]
[379166524,1755173438969,-1231.01,0.00016438,2]
[379166525,1755173438979,-668.33,0.00016438,2]
[379166526,1755173438988,-460.0,0.00016438,2]
[379166527,1755173438997,-3475.27,0.00016438,2]
[379166528,1755173439007,-13967.02,0.00016438,2]
[379166529,1755173439017,-1204.11,0.00016438,2]
[379166530,1755173439027,-463.7,0.00016438,2]
[379166531,1755173439037,-2110.81,0.00016438,2]
[379166532,1755173439047,-948.94,0.00016438,2]
[379166533,1755173439056,-460.0,0.00016438,2]
[379166534,1755173439067,-10303.06,0.00016438,2]
[379166535,1755173439077,-460.0,0.00016438,2]
[379166536,1755173439086,-460.0,0.00016438,2]
[379166537,1755173439096,-2234.48,0.00016438,2]
[379166538,1755173439106,-3603.74,0.00016438,2]
[379166539,1755173439115,-650.55,0.00016438,2]
[379166540,1755173439125,-594.01,0.00016438,2]
[379166541,1755173439135,-1578.8,0.00016438,2]
[379166542,1755173439144,-1187.02,0.00016438,2]
[379166543,1755173439154,-896.46,0.00016438,2]
[379166544,1755173439164,-460.0,0.00016438,2]
[379166545,1755173439173,-460.0,0.00016438,2]
[379166546,1755173439183,-460.0,0.00016438,2]
[379166547,1755173439192,-460.0,0.00016438,2]
[379166548,1755173439201,-460.0,0.00016438,2]
[379166549,1755173439210,-460.0,0.00016438,2]
[379166550,1755173439220,-2265.14,0.00016438,2]
[379166551,1755173439229,-460.0,0.00016438,2]
[379166552,1755173439238,-460.0,0.00016438,2]
[379166554,1755173439247,-1367.49,0.00016438,2]
[379166556,1755173439257,-1137.36,0.00016438,2]
[379166557,1755173439267,-460.0,0.00016438,2]
[379166558,1755173439276,-487.15,0.00016438,2]
[379166559,1755173439285,-8931.66,0.00016438,2]
[379166560,1755173439294,-1136.05,0.00016438,2]
[379166561,1755173439304,-640.56,0.00016438,2]
[379166562,1755173439313,-460.0,0.00016438,2]
[379166563,1755173439323,-460.0,0.00016438,2]
[379166564,1755173439332,-705.25,0.00016438,2]
[379166565,1755173439343,-521.0332982,0.00016438,2]
[379166566,1755173439352,-460.0,0.00016438,2]
[379166567,1755173439363,-1263.37,0.00016438,2]
[379166568,1755173439372,-460.0,0.00016438,2]
[379166569,1755173439383,-612.8,0.00016438,2]
[379166570,1755173439393,-2176.31,0.00016438,2]
[379166571,1755173439401,-716.96,0.00016438,2]
[379166572,1755173439412,-460.0,0.00016438,2]
[379166573,1755173439421,-460.0,0.00016438,2]
[379166575,1755173439431,-463.06559674,0.00016438,2]
[379166577,1755173439440,-500.0,0.00016438,2]
[379166578,1755173439450,-1152.75438014,0.00016461,2]
[379166580,1755173439459,-1417.87,0.00016502,3]
[379166581,1755173439469,-708.93,0.00016502,3]
[379166583,1755173439478,-354.47,0.00016502,3]
[379166584,1755173439487,-177.23,0.00016502,3]
[379166585,1755173439497,-531.72,0.00016502,3]
[379166586,1755173439509,-300.0,0.00016502,2]
[379166587,1755173439519,-151.0,0.00016502,2]
[379166588,1755173439528,-300.0,0.00016502,2]
[379166589,1755173439537,-300.0,0.00016502,2]
[379166590,1755173439546,-500.0,0.00016502,2]
[379166591,1755173439556,-611.58707087,0.00016502,2]
[379166592,1755173439569,-17842.522448,0.00016502,2]
[379166593,1755173439581,-1000.0,0.00016511,2]
[379166594,1755173439591,-1000.0,0.00016511,2]
[379166595,1755173439601,-1000.0,0.00016511,2]
[379166596,1755173439610,-1000.0,0.00016511,2]
[379166597,1755173439620,-1000.0,0.00016511,2]
[379166598,1755173439629,-1000.0,0.00016511,2]
[379166599,1755173439639,-1000.0,0.00016511,2]
[379166600,1755173439648,-1000.0,0.00016511,2]
[379166601,1755173439658,-1000.0,0.00016511,2]
[379166602,1755173439667,-1000.0,0.00016511,2]
[379166603,1755173439677,-1000.0,0.00016511,2]
[379166604,1755173439687,-1000.0,0.00016511,2]
[379166605,1755173439696,-716.70684938,0.00016511,2]
[379166606,1755173439705,-161.63888576,0.00016511,2]
[379166607,1755173439714,-459.18230162,0.00016511,2]
[379166608,1755173439724,-1152.75438014,0.00016512,2]
[379166609,1755173439734,-370000.0,0.00016512,2]
[379166610,1755173439743,-168.0,0.00016523,2]
[379166612,1755173439753,-168.0,0.00016542,2]
[379166613,1755173439762,-1542.0,0.00016551,2]
[379166615,1755173439771,-1152.75438014,0.00016562,2]
[379166617,1755173439781,-500.0,0.00016573,2]
[379166618,1755173439790,-500.0,0.00016573,2]
[379166619,1755173439800,-500.0,0.00016573,2]
[379166620,1755173439809,-500.0,0.00016573,2]
[379166621,1755173439818,-500.0,0.00016573,2]
[379166622,1755173439828,-500.43368573,0.00016573,2]
[379166623,1755173439837,-501.14949656,0.00016573,2]
[379166624,1755173439848,-500.0,0.00016573,2]
[379166625,1755173439857,-500.0,0.00016573,2]
[379166626,1755173439867,-500.0,0.00016573,2]
[379166627,1755173439877,-500.0,0.00016573,2]
[379166628,1755173439886,-500.96409506,0.00016573,2]
[379166629,1755173439896,-501.06216224,0.00016573,2]
[379166630,1755173439906,-258.97401066,0.00016573,2]
[379166631,1755173439916,-500.5033971,0.00016573,2]
[379166632,1755173439925,-500.0,0.00016573,2]
[379166633,1755173439934,-500.251964,0.00016573,2]
[379166634,1755173439943,-500.0,0.00016573,2]
[379166635,1755173439952,-500.0,0.00016573,2]
[379166636,1755173439962,-584.08680848,0.00016573,2]
[379166637,1755173439972,-500.0,0.00016573,2]
[379166638,1755173439981,-168.0,0.00016576,2]
[379166639,1755173439991,-168.0,0.00016598,2]
[379166640,1755173440000,-775.8,0.00016611,2]
[379166641,1755173440010,-460.0,0.00016611,2]
[379166642,1755173440019,-460.0,0.00016611,2]
[379166643,1755173440029,-233.88582353,0.00016611,2]
[379166644,1755173440039,-460.0,0.00016611,2]
[379166645,1755173440049,-1054.39,0.00016611,2]
[379166646,1755173440058,-460.0,0.00016611,2]
[379166647,1755173440067,-670.3,0.00016611,2]
[379166648,1755173440076,-2115.76,0.00016611,2]
[379166649,1755173440086,-460.0,0.00016611,2]
[379166650,1755173440096,-1723.25,0.00016611,2]
[379166651,1755173440106,-460.0,0.00016611,2]
[379166652,1755173440115,-460.0,0.00016611,2]
[379166653,1755173440124,-460.0,0.00016611,2]
[379166654,1755173440134,-715.97,0.00016611,2]
[379166655,1755173440143,-460.0,0.00016611,2]
[379166656,1755173440153,-460.0,0.00016611,2]
[379166657,1755173440162,-777.37,0.00016611,2]
[379166658,1755173440172,-3550.32,0.00016611,2]
[379166659,1755173440181,-461.85,0.00016611,2]
[379166660,1755173440190,-704.78,0.00016611,2]
[379166661,1755173440200,-460.0,0.00016611,2]
[379166662,1755173440209,-460.0,0.00016611,2]
[379166663,1755173440219,-460.0,0.00016611,2]
[379166664,1755173440228,-460.0,0.00016611,2]
[379166665,1755173440237,-1019.33,0.00016611,2]
[379166666,1755173440247,-1293.96,0.00016611,2]
[379166667,1755173440256,-977.71,0.00016611,2]
[379166668,1755173440265,-460.0,0.00016611,2]
[379166669,1755173440274,-460.0,0.00016611,2]
[379166670,1755173440284,-460.0,0.00016611,2]
[379166671,1755173440293,-2321.14,0.00016611,2]
[379166672,1755173440303,-1675.12,0.00016611,2]
[379166673,1755173440312,-1471.32,0.00016611,2]
[379166674,1755173440324,-957.1,0.00016611,2]
[379166675,1755173440333,-1746.24,0.00016611,2]
[379166676,1755173440343,-1464.09,0.00016611,2]
[379166677,1755173440357,-460.0,0.00016611,2]
[379166678,1755173440366,-1415.29,0.00016611,2]
[379166679,1755173440376,-2917.14,0.00016611,2]
[379166680,1755173440386,-1781.5,0.00016611,2]
[379166681,1755173440396,-1084.86,0.00016611,2]
[379166682,1755173440405,-4043.71,0.00016611,2]
[379166683,1755173440414,-575.26413,0.00016611,2]
[379166684,1755173440424,-575.26413,0.00016611,2]
[379166685,1755173440434,-1842.329479,0.00016611,2]
[379166686,1755173440443,-1842.329479,0.00016611,2]
[379166687,1755173440452,-435.23803439,0.00016611,2]
[379166688,1755173440461,-551.13,0.00016611,2]
[379166689,1755173440470,-1126.18,0.00016611,2]
[379166690,1755173440480,-1465.34,0.00016611,2]
[379166691,1755173440489,-517.48,0.00016611,2]
[379166692,1755173440501,-460.0,0.00016611,2]
[379166693,1755173440511,-460.0,0.00016611,2]
[379166694,1755173440521,-1152.75438014,0.00016612,2]
[379166695,1755173440530,-168.0,0.00016685,2]
[379166696,1755173440540,-151.0,0.000167,2]
[379166697,1755173440550,-151.0,0.000167,2]
[379166698,1755173440559,-2182.57270721,0.0001671,2]
[379166699,1755173440569,-460.0,0.0001671,2]
[379166700,1755173440578,-460.0,0.0001671,2]
[379166701,1755173440588,-460.0,0.0001671,2]
[379166702,1755173440598,-460.0,0.0001671,2]
[379166703,1755173440607,-460.0,0.0001671,2]
[379166704,1755173440616,-460.0,0.0001671,2]
[379166705,1755173440626,-462.31218879,0.0001671,2]
[379166706,1755173440636,-460.0,0.0001671,2]
[379166707,1755173440646,-1344.79,0.0001671,2]
[379166708,1755173440655,-460.0,0.0001671,2]
[379166709,1755173440665,-543.24,0.0001671,2]
[379166710,1755173440674,-460.0,0.0001671,2]
[379166711,1755173440684,-460.0,0.0001671,2]
[379166712,1755173440694,-778.07,0.0001671,2]
[379166713,1755173440704,-460.0,0.0001671,2]
[379166714,1755173440713,-460.0,0.0001671,2]
[379166715,1755173440723,-1152.21,0.0001671,2]
[379166716,1755173440732,-460.0,0.0001671,2]
[379166717,1755173440741,-540.51,0.0001671,2]
[379166718,1755173440751,-1001.97,0.0001671,2]
[379166719,1755173440760,-460.0,0.0001671,2]
[379166720,1755173440769,-460.0,0.0001671,2]
[379166721,1755173440779,-460.0,0.0001671,2]
[379166722,1755173440788,-541.83,0.0001671,2]
[379166723,1755173440798,-466.99147461,0.0001671,2]
[379166724,1755173440808,-460.0,0.0001671,2]
[379166725,1755173440817,-460.0,0.0001671,2]
[379166726,1755173440826,-514.39,0.0001671,2]
[379166727,1755173440836,-460.0,0.0001671,2]
[379166728,1755173440846,-460.0,0.0001671,2]
[379166729,1755173440856,-460.0,0.0001671,2]
[379166730,1755173440865,-549.5,0.0001671,2]
[379166731,1755173440875,-460.0,0.0001671,2]
[379166732,1755173440884,-592.55096131,0.0001671,2]
[379166733,1755173440894,-460.0,0.0001671,2]
[379166734,1755173440903,-661.25,0.0001671,2]
[379166735,1755173440912,-190.14742887,0.0001671,2]
[379166736,1755173440921,-460.0,0.0001671,2]
[379166737,1755173440931,-422.54252446,0.0001671,2]
[379166738,1755173440940,-460.0,0.0001671,2]
[379166739,1755173440949,-460.0,0.0001671,2]
[379166740,1755173440958,-460.0,0.0001671,2]
[379166741,1755173440968,-460.0,0.0001671,2]
[379166742,1755173440976,-503.55841545,0.0001671,2]
[379166743,1755173440986,-460.0,0.0001671,2]